[Event "*** Titled Tuesday 3|2 Blitz"]
[Site "Chess.com"]
[Date "2015.06.02"]
[Round "6"]
[White "David_Klein"]
[Black "RitvarsReimanis"]
[Result "0-1"]
[WhiteElo "2270"]
[BlackElo "2356"]
[TimeControl "180+2"]
[EndTime "12:14:30 PDT"]
[Termination "RitvarsReimanis won by resignation"]

1. e4 {[%clk 0:03:01.9]} 1... e6 {[%clk 0:02:57.7]} 2. Qe2 {[%clk 0:02:59.3]}
2... Be7 {[%clk 0:02:57.6]} 3. Nf3 {[%clk 0:02:59.7]} 3... d5 {[%clk 0:02:57.3]}
4. d3 {[%clk 0:03:00.7]} 4... Nf6 {[%clk 0:02:53.1]} 5. g3 {[%clk 0:03:01.1]}
5... O-O {[%clk 0:02:52.7]} 6. Bg2 {[%clk 0:03:02]} 6... c5 {[%clk 0:02:51.2]}
7. O-O {[%clk 0:03:02.3]} 7... Nc6 {[%clk 0:02:49.8]} 8. Re1 {[%clk 0:03:00.4]}
8... Re8 {[%clk 0:02:45.1]} 9. Nbd2 {[%clk 0:02:59.6]} 9... Bf8 {[%clk
0:02:35.2]} 10. e5 {[%clk 0:02:58]} 10... Nd7 {[%clk 0:02:32.6]} 11. Nf1 {[%clk
0:02:59.5]} 11... b5 {[%clk 0:02:32.3]} 12. h4 {[%clk 0:02:57.9]} 12... b4
{[%clk 0:02:27.4]} 13. N1h2 {[%clk 0:02:55.9]} 13... f6 {[%clk 0:02:14]} 14.
exf6 {[%clk 0:02:48.1]} 14... Nxf6 {[%clk 0:02:15.9]} 15. Bg5 {[%clk 0:02:40.8]}
15... h6 {[%clk 0:02:16.3]} 16. Bf4 {[%clk 0:02:34.7]} 16... Bd6 {[%clk
0:02:13.1]} 17. Ne5 {[%clk 0:02:34.1]} 17... Nxe5 {[%clk 0:01:52.4]} 18. Bxe5
{[%clk 0:02:33.7]} 18... Bxe5 {[%clk 0:01:51.1]} 19. Qxe5 {[%clk 0:02:34.4]}
19... Bb7 {[%clk 0:01:49.1]} 20. Nf3 {[%clk 0:02:25.8]} 20... Rc8 {[%clk
0:01:42]} 21. Re2 {[%clk 0:02:23.6]} 21... Qb6 {[%clk 0:01:36.3]} 22. Rae1
{[%clk 0:02:22.3]} 22... d4 {[%clk 0:01:19.9]} 23. Qf4 {[%clk 0:02:17.9]} 23...
Qc6 {[%clk 0:01:08.3]} 24. g4 {[%clk 0:02:14.8]} 24... Qd5 {[%clk 0:01:02.2]}
25. g5 {[%clk 0:02:04]} 25... Nd7 {[%clk 0:00:46.9]} 26. gxh6 {[%clk 0:01:59.6]}
26... g6 {[%clk 0:00:35.5]} 27. Qg3 {[%clk 0:01:59.6]} 27... Nf8 {[%clk
0:00:27.4]} 28. Re5 {[%clk 0:01:58.5]} 28... Qd7 {[%clk 0:00:26.6]} 29. h5
{[%clk 0:01:59.3]} 29... Kh7 {[%clk 0:00:27.2]} 30. Rg5 {[%clk 0:01:58.1]} 30...
Kxh6 {[%clk 0:00:17.9]} 31. Rxg6+ {[%clk 0:01:58.3]} 31... Kh7 {[%clk
0:00:19.1]} 32. Ne5 {[%clk 0:01:56.8]} 32... Qe7 {[%clk 0:00:14.2]} 33. Bxb7
{[%clk 0:01:50.8]} 33... Qxb7 {[%clk 0:00:16.1]} 34. Re4 {[%clk 0:01:50.1]}
34... Re7 {[%clk 0:00:16.1]} 35. Rg8 {[%clk 0:01:33.3]} 35... Rg7 {[%clk
0:00:13.8]} 36. Rg4 {[%clk 0:01:28.9]} 36... Kxg8 {[%clk 0:00:10.7]} 37. h6
{[%clk 0:01:29.9]} 37... Rxg4 {[%clk 0:00:10.1]} 38. Nxg4 {[%clk 0:01:31.8]}
38... Kh8 {[%clk 0:00:10.1]} 39. Qe5+ {[%clk 0:01:26.7]} 39... Kh7 {[%clk
0:00:11.5]} 40. Qg5 {[%clk 0:01:21.8]} 40... Qf7 {[%clk 0:00:08.9]} 41. Nf6+
{[%clk 0:01:20.9]} 41... Kh8 {[%clk 0:00:09]} 42. Qe5 {[%clk 0:01:21.3]} 42...
Ng6 {[%clk 0:00:09.2]} 43. Qg5 {[%clk 0:01:22.3]} 43... Nf8 {[%clk 0:00:09.6]}
44. Qe5 {[%clk 0:01:23]} 44... Ng6 {[%clk 0:00:11]} 45. Qg5 {[%clk 0:01:24.1]}
45... Rf8 {[%clk 0:00:12.1]} 46. Ne4 {[%clk 0:01:22.2]} 46... Qf5 {[%clk
0:00:11.7]} 47. Qg3 {[%clk 0:01:22.9]} 47... Rg8 {[%clk 0:00:10.7]} 48. Qc7
{[%clk 0:01:15.4]} 48... Ne5+ {[%clk 0:00:10.8]} 49. Kf1 {[%clk 0:01:16.3]}
49... Ng6 {[%clk 0:00:07.6]} 50. Nd6 {[%clk 0:01:11.4]} 50... Qf4 {[%clk
0:00:05.9]} 51. Nf7+ {[%clk 0:01:03]} 51... Kh7 {[%clk 0:00:06.1]} 52. Ng5+
{[%clk 0:00:55.1]} 52... Kxh6 {[%clk 0:00:07.3]} 53. Qh7+ {[%clk 0:00:56.6]}
53... Kxg5 {[%clk 0:00:08.6]} 54. Qxg8 {[%clk 0:00:58.5]} 54... Qc1+ {[%clk
0:00:09.5]} 55. Kg2 {[%clk 0:00:58.9]} 55... Qxc2 {[%clk 0:00:10.7]} 56. Qd8+
{[%clk 0:01:00.1]} 56... Kh6 {[%clk 0:00:11.4]} 57. Qf6 {[%clk 0:00:58.9]} 57...
Qxd3 {[%clk 0:00:11.6]} 58. Qxe6 {[%clk 0:01:00.2]} 58... c4 {[%clk 0:00:11.7]}
59. Qd6 {[%clk 0:00:58.8]} 59... c3 {[%clk 0:00:12.1]} 60. bxc3 {[%clk 0:01:00]}
60... bxc3 {[%clk 0:00:14]} 61. Qh2+ {[%clk 0:01:01]} 61... Kg7 {[%clk
0:00:13.8]} 62. Qc7+ {[%clk 0:01:01.6]} 62... Kh6 {[%clk 0:00:15.1]} 63. Qh2+
{[%clk 0:01:02.5]} 63... Kg5 {[%clk 0:00:16.5]} 64. Qd6 {[%clk 0:01:03.3]} 64...
Nf4+ {[%clk 0:00:15.1]} 65. Kg1 {[%clk 0:01:02]} 65... c2 {[%clk 0:00:12]} 66.
Qe7+ {[%clk 0:01:01.4]} 66... Kg6 {[%clk 0:00:09.9]} 67. Qd6+ {[%clk 0:01:01.5]}
67... Kf5 {[%clk 0:00:10.9]} 68. Qd7+ {[%clk 0:01:02.4]} 68... Ke5 {[%clk
0:00:10.8]} 69. Qe7+ {[%clk 0:01:02.9]} 69... Ne6 {[%clk 0:00:07.9]} 70. Qa3
{[%clk 0:00:58.5]} 70... Qxa3 {[%clk 0:00:08.3]} 0-1

[Event "*** Titled Tuesday 3|2 Blitz"]
[Site "Chess.com"]
[Date "2015.06.02"]
[Round "6"]
[White "esr44"]
[Black "aripov96"]
[Result "0-1"]
[WhiteElo "2009"]
[BlackElo "2249"]
[TimeControl "180+2"]
[EndTime "12:15:50 PDT"]
[Termination "aripov96 won by checkmate"]

1. d4 {[%clk 0:03:00.2]} 1... Nf6 {[%clk 0:02:58.9]} 2. c4 {[%clk 0:02:59.7]}
2... e6 {[%clk 0:02:59.7]} 3. Nc3 {[%clk 0:03:00.9]} 3... Bb4 {[%clk 0:02:59.9]}
4. Nf3 {[%clk 0:03:02.1]} 4... O-O {[%clk 0:02:59.9]} 5. Bg5 {[%clk 0:03:02.8]}
5... h6 {[%clk 0:02:59.3]} 6. Bh4 {[%clk 0:03:03.4]} 6... d5 {[%clk 0:02:58.3]}
7. e3 {[%clk 0:03:04.3]} 7... Nbd7 {[%clk 0:02:59]} 8. Qc2 {[%clk 0:03:04.7]}
8... c5 {[%clk 0:02:59.7]} 9. Bd3 {[%clk 0:03:04.9]} 9... cxd4 {[%clk
0:03:00.2]} 10. exd4 {[%clk 0:03:03.9]} 10... dxc4 {[%clk 0:03:01.5]} 11. Bxc4
{[%clk 0:03:05.2]} 11... b6 {[%clk 0:02:57.5]} 12. O-O {[%clk 0:02:59.9]} 12...
Bb7 {[%clk 0:02:54.2]} 13. Ne5 {[%clk 0:03:00.6]} 13... Be7 {[%clk 0:02:48.4]}
14. Rad1 {[%clk 0:02:59.4]} 14... Qc7 {[%clk 0:02:45.9]} 15. Nb5 {[%clk
0:02:51.1]} 15... Qc8 {[%clk 0:02:32.3]} 16. Qb3 {[%clk 0:01:26]} 16... Nxe5
{[%clk 0:01:44.4]} 17. dxe5 {[%clk 0:01:26.7]} 17... Qc6 {[%clk 0:01:45.4]} 18.
f3 {[%clk 0:00:51.1]} 18... Qc5+ {[%clk 0:01:43.3]} 19. Bf2 {[%clk 0:00:35.4]}
19... Qxe5 {[%clk 0:01:43.2]} 20. Rfe1 {[%clk 0:00:36.9]} 20... Qg5 {[%clk
0:01:34.3]} 21. Nd6 {[%clk 0:00:28.6]} 21... Bxd6 {[%clk 0:01:32.6]} 22. Rxd6
{[%clk 0:00:29.1]} 22... Bd5 {[%clk 0:01:18.5]} 23. Bxd5 {[%clk 0:00:14.7]}
23... Nxd5 {[%clk 0:01:19.1]} 24. Rd7 {[%clk 0:00:12.9]} 24... Nf4 {[%clk
0:01:10.8]} 25. Bg3 {[%clk 0:00:13.7]} 25... Nh5 {[%clk 0:01:10.1]} 26. Bd6
{[%clk 0:00:10.4]} 26... Rfd8 {[%clk 0:01:02.9]} 27. Be7 {[%clk 0:00:11.1]}
27... Qa5 {[%clk 0:01:02.6]} 28. Bb4 {[%clk 0:00:09.3]} 28... Qb5 {[%clk
0:00:57.9]} 29. Rxd8+ {[%clk 0:00:09.2]} 29... Rxd8 {[%clk 0:00:58.5]} 30. a4
{[%clk 0:00:08.9]} 30... Qg5 {[%clk 0:00:57.2]} 31. Qc2 {[%clk 0:00:07.5]} 31...
Nf4 {[%clk 0:00:55]} 32. Kh1 {[%clk 0:00:07.5]} 32... Nd5 {[%clk 0:00:47.8]} 33.
Bc3 {[%clk 0:00:06.6]} 33... Rc8 {[%clk 0:00:47.3]} 34. Rc1 {[%clk 0:00:05.7]}
34... Nxc3 {[%clk 0:00:45.4]} 35. bxc3 {[%clk 0:00:07.6]} 35... Qe3 {[%clk
0:00:45]} 36. c4 {[%clk 0:00:07]} 36... Qd4 {[%clk 0:00:44.8]} 37. h3 {[%clk
0:00:07.7]} 37... Rc5 {[%clk 0:00:42.3]} 38. Qb3 {[%clk 0:00:09]} 38... Qd2
{[%clk 0:00:41.3]} 39. Rd1 {[%clk 0:00:09.3]} 39... Qf4 {[%clk 0:00:40.9]} 40.
Rd8+ {[%clk 0:00:10]} 40... Kh7 {[%clk 0:00:41.9]} 41. Qd3+ {[%clk 0:00:11.6]}
41... g6 {[%clk 0:00:38.1]} 42. Rd7 {[%clk 0:00:12]} 42... Kg7 {[%clk
0:00:36.1]} 43. Rxa7 {[%clk 0:00:11.1]} 43... Qxc4 {[%clk 0:00:36]} 44. Qxc4
{[%clk 0:00:08.1]} 44... Rxc4 {[%clk 0:00:37.9]} 45. a5 {[%clk 0:00:09]} 45...
bxa5 {[%clk 0:00:37.9]} 46. Rxa5 {[%clk 0:00:10.2]} 46... g5 {[%clk 0:00:38]}
47. Kh2 {[%clk 0:00:11.4]} 47... Rc3 {[%clk 0:00:38.2]} 48. Kg3 {[%clk
0:00:12.4]} 48... Kg6 {[%clk 0:00:39.2]} 49. Kf2 {[%clk 0:00:12.6]} 49... h5
{[%clk 0:00:38.6]} 50. Kg3 {[%clk 0:00:13.9]} 50... Rc2 {[%clk 0:00:37.2]} 51.
Kh2 {[%clk 0:00:15.1]} 51... f5 {[%clk 0:00:36.8]} 52. Re5 {[%clk 0:00:15]}
52... Kf6 {[%clk 0:00:37.9]} 53. Ra5 {[%clk 0:00:16]} 53... Rd2 {[%clk
0:00:33.8]} 54. Kg3 {[%clk 0:00:16.7]} 54... h4+ {[%clk 0:00:34.4]} 55. Kh2
{[%clk 0:00:18.1]} 55... Rd5 {[%clk 0:00:35]} 56. Ra8 {[%clk 0:00:18.8]} 56...
Ke5 {[%clk 0:00:36.4]} 57. Ra4 {[%clk 0:00:17.7]} 57... Rc5 {[%clk 0:00:33.5]}
58. Rb4 {[%clk 0:00:17.8]} 58... Kf6 {[%clk 0:00:34]} 59. Rb8 {[%clk 0:00:18.3]}
59... Rc7 {[%clk 0:00:34.4]} 60. Rf8+ {[%clk 0:00:18.2]} 60... Rf7 {[%clk
0:00:35.5]} 61. Ra8 {[%clk 0:00:17.7]} 61... e5 {[%clk 0:00:31.1]} 62. Ra6+
{[%clk 0:00:17.8]} 62... Ke7 {[%clk 0:00:30.1]} 63. Rg6 {[%clk 0:00:18.2]} 63...
Rh7 {[%clk 0:00:19]} 64. Rxg5 {[%clk 0:00:17]} 64... Kf6 {[%clk 0:00:20.6]} 65.
Rg8 {[%clk 0:00:18.1]} 65... e4 {[%clk 0:00:21.7]} 66. fxe4 {[%clk 0:00:16.3]}
66... fxe4 {[%clk 0:00:23.6]} 67. Re8 {[%clk 0:00:15.9]} 67... Kf5 {[%clk
0:00:24.6]} 68. Kg1 {[%clk 0:00:15.4]} 68... Rb7 {[%clk 0:00:23.4]} 69. Rf8+
{[%clk 0:00:14.7]} 69... Ke5 {[%clk 0:00:24]} 70. Re8+ {[%clk 0:00:14.6]} 70...
Kf4 {[%clk 0:00:25.1]} 71. Rf8+ {[%clk 0:00:12.3]} 71... Ke3 {[%clk 0:00:26.2]}
72. Rh8 {[%clk 0:00:09.6]} 72... Re7 {[%clk 0:00:19.7]} 73. Rxh4 {[%clk
0:00:10.2]} 73... Kd3 {[%clk 0:00:20.7]} 74. Kf2 {[%clk 0:00:10]} 74... e3+
{[%clk 0:00:20.8]} 75. Kf1 {[%clk 0:00:07.3]} 75... Rb7 {[%clk 0:00:18]} 76. g3
{[%clk 0:00:06.4]} 76... e2+ {[%clk 0:00:16.9]} 77. Kf2 {[%clk 0:00:06.4]} 77...
Rb1 {[%clk 0:00:16.3]} 78. Rh8 {[%clk 0:00:03.6]} 78... e1=Q+ {[%clk 0:00:17.2]}
79. Kf3 {[%clk 0:00:05.2]} 79... Qe4+ {[%clk 0:00:17.8]} 80. Kf2 {[%clk
0:00:06.1]} 80... Rb2+ {[%clk 0:00:18.9]} 81. Kf1 {[%clk 0:00:07]} 81... Qf3+
{[%clk 0:00:19.8]} 82. Kg1 {[%clk 0:00:07.7]} 82... Qg2# {[%clk 0:00:21]} 0-1

[Event "*** Titled Tuesday 3|2 Blitz"]
[Site "Chess.com"]
[Date "2015.06.02"]
[Round "6"]
[White "VSERGUEI"]
[Black "GMHess"]
[Result "0-1"]
[WhiteElo "2481"]
[BlackElo "2483"]
[TimeControl "180+2"]
[EndTime "12:19:52 PDT"]
[Termination "GMHess won on time"]

1. d4 {[%clk 0:03:01.9]} 1... g6 {[%clk 0:02:58.5]} 2. c4 {[%clk 0:03:01.9]}
2... Bg7 {[%clk 0:02:54.4]} 3. e4 {[%clk 0:03:02.9]} 3... d6 {[%clk 0:02:44.9]}
4. Nc3 {[%clk 0:03:02.6]} 4... e5 {[%clk 0:02:44.2]} 5. dxe5 {[%clk 0:03:02.9]}
5... dxe5 {[%clk 0:02:44.6]} 6. Qxd8+ {[%clk 0:03:02.8]} 6... Kxd8 {[%clk
0:02:46.5]} 7. Bg5+ {[%clk 0:03:03.1]} 7... f6 {[%clk 0:02:47.6]} 8. O-O-O+
{[%clk 0:03:03.9]} 8... Nd7 {[%clk 0:02:48.4]} 9. Be3 {[%clk 0:03:04.8]} 9...
Bh6 {[%clk 0:02:44.7]} 10. h4 {[%clk 0:02:58.5]} 10... Bxe3+ {[%clk 0:02:44.1]}
11. fxe3 {[%clk 0:02:58.9]} 11... h5 {[%clk 0:02:39.3]} 12. Be2 {[%clk 0:02:57]}
12... c6 {[%clk 0:02:37.5]} 13. g4 {[%clk 0:02:57.1]} 13... hxg4 {[%clk
0:02:38.3]} 14. Bxg4 {[%clk 0:02:57.3]} 14... Ke7 {[%clk 0:02:37.6]} 15. Nf3
{[%clk 0:02:52.9]} 15... Nh6 {[%clk 0:02:28.2]} 16. Rhg1 {[%clk 0:02:46.4]}
16... Nxg4 {[%clk 0:02:23.3]} 17. Rxg4 {[%clk 0:02:46.8]} 17... Nf8 {[%clk
0:02:22.2]} 18. Rg3 {[%clk 0:02:46.7]} 18... Be6 {[%clk 0:02:23.3]} 19. b3
{[%clk 0:02:46.7]} 19... Rd8 {[%clk 0:02:21.7]} 20. Rxd8 {[%clk 0:02:45.6]}
20... Kxd8 {[%clk 0:02:23.6]} 21. Na4 {[%clk 0:02:46.5]} 21... b6 {[%clk
0:02:23.4]} 22. c5 {[%clk 0:02:46.6]} 22... b5 {[%clk 0:02:22.6]} 23. Nb2 {[%clk
0:02:47.1]} 23... Bf7 {[%clk 0:02:21.5]} 24. Kc2 {[%clk 0:02:45.7]} 24... a5
{[%clk 0:02:17.7]} 25. Nd3 {[%clk 0:02:38.4]} 25... Ke7 {[%clk 0:02:11.2]} 26.
a3 {[%clk 0:02:38.2]} 26... Nd7 {[%clk 0:02:11.4]} 27. b4 {[%clk 0:02:39]} 27...
Ra8 {[%clk 0:02:06.9]} 28. Nd2 {[%clk 0:02:37.8]} 28... axb4 {[%clk 0:02:02.2]}
29. axb4 {[%clk 0:02:30.7]} 29... Ra2+ {[%clk 0:01:41.5]} 30. Nb2 {[%clk
0:02:30.1]} 30... Nb8 {[%clk 0:01:29.4]} 31. Kb1 {[%clk 0:02:18.3]} 31... Ra3
{[%clk 0:01:13.4]} 32. Kc2 {[%clk 0:02:11.1]} 32... Ra2 {[%clk 0:00:54.5]} 33.
Kc3 {[%clk 0:01:49.9]} 33... Ra3+ {[%clk 0:00:52.3]} 34. Kc2 {[%clk 0:01:50.4]}
34... Na6 {[%clk 0:00:53.9]} 35. Nd3 {[%clk 0:01:49.2]} 35... Bc4 {[%clk
0:00:52.7]} 36. Nxc4 {[%clk 0:01:49.1]} 36... bxc4 {[%clk 0:00:54.6]} 37. Nc1
{[%clk 0:01:47.5]} 37... Kf7 {[%clk 0:00:37.9]} 38. Kb2 {[%clk 0:01:47.4]} 38...
Ra4 {[%clk 0:00:36.8]} 39. Na2 {[%clk 0:01:47.6]} 39... Nxb4 {[%clk 0:00:29.1]}
40. Nxb4 {[%clk 0:01:48]} 40... Rxb4+ {[%clk 0:00:31]} 41. Kc3 {[%clk 0:01:49]}
41... Ra4 {[%clk 0:00:30.9]} 42. Rh3 {[%clk 0:01:46.9]} 42... Kg7 {[%clk
0:00:26]} 43. Rf3 {[%clk 0:01:46.9]} 43... Ra1 {[%clk 0:00:22]} 44. Rf2 {[%clk
0:01:44.6]} 44... Rc1+ {[%clk 0:00:19.9]} 45. Kb4 {[%clk 0:01:44.5]} 45... c3
{[%clk 0:00:20.3]} 46. Ra2 {[%clk 0:01:41.8]} 46... c2 {[%clk 0:00:15.4]} 47.
Ra7+ {[%clk 0:01:41.1]} 47... Kh6 {[%clk 0:00:14.4]} 48. Kc3 {[%clk 0:01:41.8]}
48... Re1 {[%clk 0:00:15.7]} 49. Kxc2 {[%clk 0:01:42.5]} 49... Rxe3 {[%clk
0:00:17.5]} 50. Rc7 {[%clk 0:01:40.7]} 50... Rxe4 {[%clk 0:00:18.1]} 51. Rxc6
{[%clk 0:01:41.9]} 51... f5 {[%clk 0:00:19.2]} 52. Kc3 {[%clk 0:01:40.1]} 52...
Rxh4 {[%clk 0:00:20]} 53. Re6 {[%clk 0:01:40.3]} 53... e4 {[%clk 0:00:18.2]} 54.
c6 {[%clk 0:01:41]} 54... Rh1 {[%clk 0:00:16.5]} 55. Kb2 {[%clk 0:01:41.4]}
55... Rh2+ {[%clk 0:00:13.4]} 56. Kb3 {[%clk 0:01:41.6]} 56... Kg5 {[%clk
0:00:12.4]} 57. c7 {[%clk 0:01:34.4]} 57... Rh8 {[%clk 0:00:12]} 58. Kc4 {[%clk
0:01:34.3]} 58... Rc8 {[%clk 0:00:13]} 59. Re7 {[%clk 0:01:34.5]} 59... Kf4
{[%clk 0:00:09.7]} 60. Kd5 {[%clk 0:01:28.7]} 60... g5 {[%clk 0:00:10.8]} 61.
Ke6 {[%clk 0:01:22.8]} 61... g4 {[%clk 0:00:11.2]} 62. Rf7 {[%clk 0:01:24.1]}
62... e3 {[%clk 0:00:10]} 63. Rxf5+ {[%clk 0:01:24.8]} 63... Ke4 {[%clk
0:00:11.2]} 64. Re5+ {[%clk 0:01:25.2]} 64... Kf3 {[%clk 0:00:11.3]} 65. Kd7
{[%clk 0:01:23.6]} 65... Rxc7+ {[%clk 0:00:11.5]} 66. Kxc7 {[%clk 0:01:24.5]}
66... g3 {[%clk 0:00:13.4]} 67. Rf5+ {[%clk 0:01:25.1]} 67... Ke4 {[%clk
0:00:13.8]} 68. Rg5 {[%clk 0:01:20.8]} 68... Kf4 {[%clk 0:00:13.3]} 69. Rg8
{[%clk 0:01:19.7]} 69... e2 {[%clk 0:00:14]} 70. Re8 {[%clk 0:01:17.2]} 70... g2
{[%clk 0:00:13.1]} 71. Rf8+ {[%clk 0:01:18.2]} 71... Ke3 {[%clk 0:00:11.7]} 72.
Re8+ {[%clk 0:01:15.6]} 72... Kd3 {[%clk 0:00:12.3]} 73. Rd8+ {[%clk 0:01:13.5]}
73... Kc3 {[%clk 0:00:12.5]} 74. Re8 {[%clk 0:01:14.7]} 74... g1=Q {[%clk
0:00:10.6]} 75. Rxe2 {[%clk 0:01:15.5]} 75... Qa7+ {[%clk 0:00:10.2]} 76. Kd8
{[%clk 0:01:12.8]} 76... Qb8+ {[%clk 0:00:09.9]} 77. Ke7 {[%clk 0:01:11.9]}
77... Qc7+ {[%clk 0:00:07.9]} 78. Ke8 {[%clk 0:01:08.9]} 78... Kd4 {[%clk
0:00:05.7]} 79. Re7 {[%clk 0:01:08.7]} 79... Qc6+ {[%clk 0:00:05.8]} 80. Kf7
{[%clk 0:01:06.8]} 80... Kd5 {[%clk 0:00:07.3]} 81. Kg7 {[%clk 0:01:06.1]} 81...
Kd6 {[%clk 0:00:07.9]} 82. Rf7 {[%clk 0:01:06.6]} 82... Qg2+ {[%clk 0:00:08.5]}
83. Kf6 {[%clk 0:01:05]} 83... Qf3+ {[%clk 0:00:08.5]} 84. Kg6 {[%clk
0:01:05.3]} 84... Qg4+ {[%clk 0:00:09.6]} 85. Kf6 {[%clk 0:01:06.3]} 85... Qd4+
{[%clk 0:00:09.7]} 86. Kf5 {[%clk 0:01:01]} 86... Qe5+ {[%clk 0:00:10.4]} 87.
Kg6 {[%clk 0:01:01.8]} 87... Ke6 {[%clk 0:00:10.9]} 88. Rf8 {[%clk 0:00:53.7]}
88... Qg3+ {[%clk 0:00:10.2]} 89. Kh6 {[%clk 0:00:50.1]} 89... Ke7 {[%clk
0:00:10.3]} 90. Rf5 {[%clk 0:00:50.1]} 90... Ke6 {[%clk 0:00:07.8]} 91. Rf8
{[%clk 0:00:50.6]} 91... Qh4+ {[%clk 0:00:08.7]} 92. Kg6 {[%clk 0:00:49.8]}
92... Qg4+ {[%clk 0:00:09.8]} 93. Kh7 {[%clk 0:00:44.2]} 93... Ke7 {[%clk
0:00:11.4]} 94. Rg8 {[%clk 0:00:44.8]} 94... Qh5+ {[%clk 0:00:07.4]} 95. Kg7
{[%clk 0:00:45.4]} 95... Qg5+ {[%clk 0:00:06.6]} 96. Kh7 {[%clk 0:00:46]} 96...
Qh4+ {[%clk 0:00:07.7]} 97. Kg6 {[%clk 0:00:46.7]} 97... Qe4+ {[%clk 0:00:07.2]}
98. Kg7 {[%clk 0:00:43.5]} 98... Qf5 {[%clk 0:00:05.1]} 99. Kh6 {[%clk
0:00:40.1]} 99... Qh3+ {[%clk 0:00:05.8]} 100. Kg6 {[%clk 0:00:40.5]} 100... Qh4
{[%clk 0:00:05]} 101. Rg7+ {[%clk 0:00:32.1]} 101... Ke6 {[%clk 0:00:06.2]} 102.
Rg8 {[%clk 0:00:33.1]} 102... Qg4+ {[%clk 0:00:07.2]} 103. Kh7 {[%clk
0:00:33.8]} 103... Qh5+ {[%clk 0:00:07.9]} 104. Kg7 {[%clk 0:00:34.9]} 104...
Ke7 {[%clk 0:00:09.5]} 105. Ra8 {[%clk 0:00:17.3]} 105... Qg4+ {[%clk 0:00:10]}
106. Kh8 {[%clk 0:00:16.9]} 106... Qh3+ {[%clk 0:00:09.3]} 107. Kg8 {[%clk
0:00:14.8]} 107... Qg2+ {[%clk 0:00:10.8]} 108. Kh7 {[%clk 0:00:15.4]} 108...
Qxa8 {[%clk 0:00:12.7]} 109. Kg7 {[%clk 0:00:16.1]} 109... Qg2+ {[%clk
0:00:12.8]} 110. Kh8 {[%clk 0:00:03.6]} 110... Kf6 {[%clk 0:00:14.7]} 0-1

[Event "*** Titled Tuesday 3|2 Blitz"]
[Site "Chess.com"]
[Date "2015.06.02"]
[Round "7"]
[White "MattyDPerrine"]
[Black "1random"]
[Result "1-0"]
[WhiteElo "2248"]
[BlackElo "2050"]
[TimeControl "180+2"]
[EndTime "12:22:25 PDT"]
[Termination "MattyDPerrine won by resignation"]

1. d4 {[%clk 0:03:01.9]} 1... Nf6 {[%clk 0:03:00.2]} 2. c4 {[%clk 0:03:00.9]}
2... e6 {[%clk 0:02:55.8]} 3. Nc3 {[%clk 0:03:01.4]} 3... Bb4 {[%clk 0:02:56.4]}
4. Qc2 {[%clk 0:03:00.9]} 4... O-O {[%clk 0:02:57]} 5. Nf3 {[%clk 0:03:02]} 5...
c5 {[%clk 0:02:57.9]} 6. dxc5 {[%clk 0:03:03.1]} 6... Na6 {[%clk 0:02:59.3]} 7.
g3 {[%clk 0:03:04.4]} 7... Nxc5 {[%clk 0:02:59.4]} 8. Bg2 {[%clk 0:03:05.9]}
8... Nce4 {[%clk 0:02:58.3]} 9. O-O {[%clk 0:03:07.3]} 9... Nxc3 {[%clk
0:02:59.5]} 10. bxc3 {[%clk 0:03:09.2]} 10... Be7 {[%clk 0:03:00.5]} 11. Nd4
{[%clk 0:03:06.5]} 11... Rb8 {[%clk 0:02:37.1]} 12. Rd1 {[%clk 0:02:53]} 12...
b6 {[%clk 0:02:33.2]} 13. Nc6 {[%clk 0:02:51.8]} 13... Qc7 {[%clk 0:02:28.5]}
14. Bf4 {[%clk 0:02:40.5]} 14... d6 {[%clk 0:02:24.9]} 15. Nxe7+ {[%clk
0:02:41.6]} 15... Qxe7 {[%clk 0:02:23.6]} 16. Bxd6 {[%clk 0:02:43.5]} 16... Qe8
{[%clk 0:02:24.2]} 17. Bxb8 {[%clk 0:02:42.8]} 1-0

[Event "*** Titled Tuesday 3|2 Blitz"]
[Site "Chess.com"]
[Date "2015.06.02"]
[Round "7"]
[White "Viaje"]
[Black "Ar4uha"]
[Result "1-0"]
[WhiteElo "2230"]
[BlackElo "2420"]
[TimeControl "180+2"]
[EndTime "12:26:37 PDT"]
[Termination "Viaje won by resignation"]

1. d4 {[%clk 0:03:01.9]} 1... Nf6 {[%clk 0:02:49.4]} 2. c4 {[%clk 0:03:01.5]}
2... e6 {[%clk 0:02:50.6]} 3. Nc3 {[%clk 0:03:01.3]} 3... Bb4 {[%clk 0:02:50.7]}
4. f3 {[%clk 0:03:02.7]} 4... O-O {[%clk 0:02:43]} 5. a3 {[%clk 0:03:02.9]} 5...
Bxc3+ {[%clk 0:02:42]} 6. bxc3 {[%clk 0:03:04.8]} 6... d5 {[%clk 0:02:43.7]} 7.
cxd5 {[%clk 0:03:04]} 7... exd5 {[%clk 0:02:44.7]} 8. e3 {[%clk 0:03:05.5]} 8...
b6 {[%clk 0:02:44.1]} 9. Bd3 {[%clk 0:03:05.7]} 9... Ba6 {[%clk 0:02:43.4]} 10.
Ne2 {[%clk 0:03:07.2]} 10... c5 {[%clk 0:02:44.4]} 11. O-O {[%clk 0:03:07.3]}
11... Re8 {[%clk 0:02:45.3]} 12. Ng3 {[%clk 0:03:02.5]} 12... Qc8 {[%clk
0:02:43.8]} 13. e4 {[%clk 0:02:58]} 13... cxd4 {[%clk 0:02:28.5]} 14. Bxa6
{[%clk 0:02:57.1]} 14... Nxa6 {[%clk 0:02:24.7]} 15. cxd4 {[%clk 0:02:57.2]}
15... Qc3 {[%clk 0:02:18.2]} 16. Bg5 {[%clk 0:02:55.9]} 16... dxe4 {[%clk
0:02:06.3]} 17. Bxf6 {[%clk 0:02:56.3]} 17... gxf6 {[%clk 0:02:07.7]} 18. fxe4
{[%clk 0:02:57.4]} 18... Rad8 {[%clk 0:02:06]} 19. Qg4+ {[%clk 0:02:56.3]} 19...
Kh8 {[%clk 0:02:07.4]} 20. Nf5 {[%clk 0:02:57.1]} 20... Rg8 {[%clk 0:02:07.5]}
21. Qh4 {[%clk 0:02:54.1]} 21... Rg6 {[%clk 0:02:08.3]} 22. Rae1 {[%clk
0:02:47.6]} 22... Qd2 {[%clk 0:02:05.9]} 23. Qf2 {[%clk 0:02:19.8]} 23... Qxf2+
{[%clk 0:02:06.3]} 24. Rxf2 {[%clk 0:02:21.7]} 24... Rgg8 {[%clk 0:01:57]} 25.
d5 {[%clk 0:02:21.7]} 25... Rge8 {[%clk 0:01:56.7]} 26. Rf4 {[%clk 0:02:05.6]}
26... Rxd5 {[%clk 0:01:47.2]} 27. exd5 {[%clk 0:01:53.5]} 27... Rxe1+ {[%clk
0:01:48.1]} 28. Kf2 {[%clk 0:01:31.9]} 28... Rd1 {[%clk 0:01:49]} 29. Re4 {[%clk
0:01:29.3]} 29... h5 {[%clk 0:01:47.6]} 30. d6 {[%clk 0:01:27.6]} 30... Nc5
{[%clk 0:01:39]} 31. Rh4 {[%clk 0:01:19.7]} 31... Ne4+ {[%clk 0:01:17]} 32. Rxe4
{[%clk 0:01:19.9]} 32... Rd5 {[%clk 0:01:16.7]} 33. Rf4 {[%clk 0:01:16.1]} 33...
Kh7 {[%clk 0:01:16.5]} 34. h3 {[%clk 0:01:07.4]} 34... Kg6 {[%clk 0:01:17.1]}
35. g4 {[%clk 0:01:08.3]} 35... Kg5 {[%clk 0:01:18.3]} 36. Rd4 {[%clk
0:01:08.4]} 1-0